Cogmind - Beta 13 @@@ ROGUE MODE // 2024.04.21 @ 23:12:07 Player: Cacho Result: Destroyed by as-07915 with Assembled F-torch Performance ------------- Evolutions (0) 0 Regions Visited (2) 400 Robots Destroyed (33) 165 Value Destroyed (836) 836 Prototype IDs (2) 40 Alien Tech Used (0) 0 Bonus (0) 0 TOTAL SCORE: 1441 Bonus ------- None Cogmind --------- Core Integrity 0/250 Matter 300/300 Energy 245/265 System Corruption 0% Temperature Cool (46) Movement Walking (190) Ox1 Location -10/Mines Parts ------- > --- POWER (1) -------- Improved Ion Engine > --- PROPULSION (2) --- Aluminum Leg Aluminum Leg > --- UTILITY (2) ------ Medium Storage Unit Improved Light Armor Plating > --- WEAPON (2) ------- Spread Laser Spread Laser > --- INVENTORY (10) --- Wheel Medium Storage Unit High-capacity Matter Pod (200) Rocket Launcher Rocket Launcher Rocket Launcher Mining Laser Plasma Cutter Peak State ------------ > --- POWER ------------ Improved Ion Engine > --- PROPULSION ------- Aluminum Leg Aluminum Leg > --- UTILITY ---------- Medium Storage Unit Improved Light Armor Plating > --- WEAPON ----------- Spread Laser Spread Laser > --- INVENTORY -------- Wheel Medium Storage Unit High-capacity Matter Pod Rocket Launcher Rocket Launcher Mining Laser Plasma Cutter [Rating: 13] Favorites ----------- Power Improved Ion Engine Engine Improved Ion Engine Propulsion Aluminum Leg Leg Aluminum Leg Utility Medium Storage Unit Storage Medium Storage Unit Processor Targeting Computer Protection Improved Light Armor Plating Weapon Spread Laser Energy Gun Spread Laser Ballistic Gun Assault Rifle Launcher Rocket Launcher Special Weapon Mining Laser Build | -11 -10 -10 ------- Run | Yrd Mat Min Slots Evolved . | . . . Power . | . . . Propulsion . | . . . Utility . | . . . Weapon . | . . . Parts Attached 27 | . 21 6 Power 3 | . 2 1 Engine 3 | . 2 1 Core . | . . . Reactor . | . . . Propulsion 7 | . 6 1 Treads . | . . . Leg 7 | . 6 1 Wheel . | . . . Hover . | . . . Flight . | . . . Utility 4 | . 3 1 Device . | . . . Storage 1 | . 1 . Processor 2 | . 2 . Hackware . | . . . Protection 1 | . . 1 Artifact . | . . . Weapon 13 | . 10 3 Energy Gun 7 | . 5 2 Energy Cannon . | . . . Ballistic Gun 1 | . 1 . Ballistic Cannon . | . . . Launcher 4 | . 4 . Special Weapon 1 | . . 1 Impact Weapon . | . . . Slashing Weapon . | . . . Piercing Weapon . | . . . Special Melee Weapon . | . . . Unidentified Prototypes . | . . . Parts Lost 4 | . 1 3 Power 1 | . . 1 Propulsion 2 | . 1 1 Utility . | . . . Weapon 1 | . . 1 Highest Loss Streak 2 | . 1 2 To Critical Strikes . | . . . Average Slot Usage (%) 98 | . 98 97 Engine 13 | . 14 13 Leg 27 | . 27 26 Storage 14 | . 14 14 Processor 12 | . 13 8 Protection 1 | . . 4 Energy Gun 21 | . 19 26 Ballistic Gun 3 | . 5 . Launcher 2 | . 3 . Naked Turns . | . . . Heaviest Build 26 | 11 23 26 Greatest Support 20 | 20 20 20 Greatest Overweight (x) 2 | . 2 2 Average Overweight (x) . | . . 1 Largest Inventory Capacity 10 | 8 10 10 Average Capacity 9 | 8 9 10 Most Carried 10 | 6 10 10 Average Carried 8 | 6 9 8 Final Capacity 10 | 8 10 10 Final Carried 10 | 6 10 8 Class Distribution -------------------- 100% | Mutant Dominant Class ---------------- Mutant | -10/Materials Mutant | -10/Mines Resources | -11 -10 -10 ----------- Run | Yrd Mat Min Matter Collected 883 | 200 623 60 Remotely . | . . . Salvage Created 818 | . 713 105 Parts 58 | . 57 1 Haulers Intercepted . | . . . Recyclers Shooed . | . . . Parts Field Recycled . | . . . Retrieved Matter . | . . . Parts Self-Destructed . | . . . Prevented . | . . . Kills | -11 -10 -10 ------- Run | Yrd Mat Min Combat Hostiles Destroyed 28 | . 20 8 Guns 22 | . 14 8 AOE 6 | . 6 . Classes Destroyed 8 | . 7 1 Worker 3 | . 3 . Builder 3 | . 3 . Operator 2 | . 2 . Watcher 3 | . 3 . Swarmer 6 | . 6 . Grunt 14 | . 12 2 Subdweller 2 | . 2 . Assembled 6 | . . 6 Best Kill Streak 7 | . 7 3 Combat Bots Only 3 | . 3 3 Max Kills in Single Turn 3 | . 3 1 Gunslinging 1 | . 1 . Exploded 2 | . 2 . Melee . | . . . Uniques/NPCs Destroyed . | . . . Combat | -11 -10 -10 -------- Run | Yrd Mat Min Hostile Shots Fired 100 | . 80 20 Missed 31 | . 28 3 Damage Taken 1030 | . 729 301 Core 250 | . 173 77 Absorbed by Shields . | . . . Core Remaining (%) 100 | 100 . . Volleys Fired 92 | . 74 18 Largest 2 | . 2 2 Hottest 130 | . 130 130 Shots Fired 158 | . 126 32 Gun 146 | . 116 30 Cannon . | . . . Launcher 10 | . 10 . Special 2 | . . 2 Kinetic 49 | . 49 . Thermal 65 | . 33 32 Explosive 10 | . 10 . Electromagnetic 34 | . 34 . Robot Hit Streak 25 | . 25 8 Robot Miss Streak 10 | . 10 8 Penetration Max . | . . . Secondary Targets 2 | . 2 . Max Gunslinging Chain 1 | . 1 . Shots Hit Robots 120 | . 90 30 Core Hits 124 | . 86 38 Critical Kills . | . . . Critical Parts Destroyed . | . . . Critical Strikes . | . . . Melee Attacks . | . . . Impact . | . . . Slashing . | . . . Piercing . | . . . Sneak Attacks . | . . . Combat Hostiles . | . . . Follow-up Attacks . | . . . Damage Inflicted 2200 | . 1853 347 Guns 1516 | . 1169 347 Cannons . | . . . Explosions 679 | . 679 . Melee . | . . . Ramming 5 | . 5 . Kinetic 377 | . 377 . Thermal 872 | . 525 347 Explosive 645 | . 645 . Electromagnetic 301 | . 301 . Impact . | . . . Slashing . | . . . Piercing . | . . . Highest Corruption . | . . . Average Corruption . | . . . Corruption Purged . | . . . Corruption Blocked . | . . . Overload Shots . | . . . Overflow Damage 4 | . 4 . Projectiles . | . . . Explosions 4 | . 4 . Melee . | . . . Knockbacks . | . . . Impact . | . . . Kinetic . | . . . Secondary . | . . . Self-Inflicted Damage 84 | . 84 . Shots 4 | . 4 . Rammed . | . . . Targets Rammed 2 | . 2 . Kicked 2 | . 2 . Crushed . | . . . Highest Temperature 333 | . 333 304 Average Temperature 88 | . 78 108 Received Heat Transfer 363 | . 270 93 Effects 6 | . 2 4 Interference 5 | . 2 3 Damage (minor) 1 | . . 1 Siege Activations . | . . . Robots Corrupted . | . . . Combat Hostiles . | . . . Parts Fried . | . . . Impact Corruptions . | . . . Robots Melted . | . . . Combat Hostiles . | . . . Parts Melted . | . . . Heat Transferred 1025 | . 595 430 Parts Sabotaged . | . . . Parts Stolen . | . . . Parts Stripped . | . . . Power Chain Reactions 1 | . 1 . Alert | -11 -10 -10 ------- Run | Yrd Mat Min Peak Influence 256 | . 256 117 Initial 66 | . . 66 Average 109 | . 122 67 Maximum Alert Level 1 | . 1 . Low Security (%) 83 | 100 78 100 Level 1 16 | . 21 . Level 2 . | . . . Level 3 . | . . . Level 4 . | . . . Level 5 . | . . . High Security . | . . . Max Security . | . . . Squads Dispatched 3 | . 3 . Investigation . | . . . Extermination . | . . . Reinforcement 3 | . 3 . Assault . | . . . Garrison . | . . . Intercept . | . . . Searches Triggered . | . . . Construction Impeded . | . . . Haulers Reinforced . | . . . Active Scanning Responses . | . . . Cargo Convoy Interrupts . | . . . Stealth | -11 -10 -10 --------- Run | Yrd Mat Min Distress Signals 2 | . 1 1 Communications Jammed . | . . . Distress Signals . | . . . Times Spotted 42 | . 32 10 Peak Tracking Total 3 | . 3 2 Tactical Retreats 2 | . 1 1 Traps | -11 -10 -10 ------- Run | Yrd Mat Min Traps Triggered 1 | . 1 . Indirectly . | . . . Trap Hack Attempts . | . . . Triggered . | . . . Disarmed . | . . . Reprogrammed . | . . . Reused . | . . . Traps Extracted . | . . . Installed . | . . . Triggered . | . . . Machines | -11 -10 -10 ---------- Run | Yrd Mat Min Machines Disabled 7 | . 7 . Max in Single Turn 2 | . 2 . Machines Repaired . | . . . Machines Dismantled . | . . . Machines Sabotaged . | . . . Overloaded Fab Kills . | . . . Hacking | -11 -10 -10 --------- Run | Yrd Mat Min Machines Accessed 3 | . 3 . Terminals 3 | . 3 . Fabricators . | . . . Repair Stations . | . . . Recycling Units . | . . . Scanalyzers . | . . . Garrison Access . | . . . Total Hacks 8 | . 8 . Successful 4 | . 4 . Failed 4 | . 4 . Catastrophic 2 | . 2 . Database Lockouts . | . . . Manual 5 | . 5 . Terminals 8 | . 8 . Fabricators . | . . . Repair Stations . | . . . Recycling Units . | . . . Scanalyzers . | . . . Garrison Access . | . . . Terminal Hacks 4 | . 4 . Record 1 | . 1 . Prototype ID Bank 1 | . 1 . Alert Level 1 | . 1 . Zone Layout 1 | . 1 . Fabricator Hacks . | . . . Repair Station Hacks . | . . . Recycling Unit Hacks . | . . . Scanalyzer . | . . . Garrison Access Hacks . | . . . Unauthorized Hacks . | . . . Terminals . | . . . Fabricators . | . . . Repair Stations . | . . . Recycling Units . | . . . Scanalyzers . | . . . Garrison Access . | . . . Data Cores Recovered . | . . . Used . | . . . Hacking Detections 3 | . 3 . Full Trace Events . | . . . Feedback Events . | . . . Feedback Blocked . | . . . Robot Schematics Acquired . | . . . Robots Built . | . . . Authchips . | . . . Time . | . . . Total Robot Build Rating . | . . . Part Schematics Acquired . | . . . Parts Built . | . . . Authchips . | . . . Time . | . . . Total Part Build Rating . | . . . Parts Repaired . | . . . Time . | . . . Parts Recycled . | . . . Recycled Matter . | . . . Retrieved Matter . | . . . Retrieved Components . | . . . Parts Scanalyzed . | . . . Part Schematics Acquired . | . . . Parts Damaged . | . . . Bothacking | -11 -10 -10 ------------ Run | Yrd Mat Min Used RIF Installer . | . . . Robots Hacked . | . . . Non-combat . | . . . Combat . | . . . Robot Hacks Applied . | . . . Relay Couplers Released . | . . . Fabnet Peak Effective % . | . . . Robots Rewired . | . . . Allies Hacked . | . . . Hacks Repelled . | . . . Allies | -11 -10 -10 -------- Run | Yrd Mat Min Total Allies . | . . . Largest Group . | . . . Highest-Rated Group . | . . . Highest-Rated Ally . | . . . Total Orders . | . . . Ally Attacks . | . . . Total Damage . | . . . Kills . | . . . Allies Corrupted . | . . . Allies Melted . | . . . Intel | -11 -10 -10 ------- Run | Yrd Mat Min Robot Analysis Total . | . . . Derelict Logs Recovered . | . . . Drone Launches . | . . . Drone Recoveries . | . . . Exploration | -11 -10 -10 ------------- Run | Yrd Mat Min Turns Passed 2739 | 3 2107 629 Spaces Moved 1290 | 3 1063 224 Core . | . . . Treads . | . . . Legs 1290 | 3 1063 224 Wheels . | . . . Hover . | . . . Flight . | . . . Fastest Speed 120 | 120 120 190 Average Speed 169 | 120 163 197 Slowest Speed 260 | 120 260 260 Overloaded Moves . | . . . Propulsion Burnouts . | . . . Robots Hopped . | . . . Cave-ins Triggered . | . . . Exploration Rate (%) 46 | 2 93 44 Regions Visited 2 Branch Regions 1 Pre-discovered Areas . | . . . Known Exits Taken . | . . . Unknown Exits Taken 2 | 1 1 . Scrap Searched 1 | . . 1 Spaces Dug 2 | . . 2 Terrain Destroyed 123 | . 121 2 Melee . | . . . Projectile 2 | . . 2 AOE 121 | . 121 . Terrain Rammed . | . . . Walls Destroyed . | . . . Machines Disabled . | . . . Actions | -11 -10 -10 --------- Run | Yrd Mat Min Total 1691 | 2 1313 376 Wait 246 | . 120 126 Move 1288 | 2 1062 224 Hop . | . . . Pick Up 13 | . 12 1 Fast Attach 11 | . 10 1 Attach 5 | . 2 3 Detach 5 | . 4 1 Swap 11 | . 9 2 Drop 18 | . 18 . Fire 92 | . 74 18 Melee . | . . . Ram . | . . . Kick 2 | . 2 . Crush . | . . . Escape Stasis . | . . . Rewire . | . . . Trap . | . . . Miscellaneous . | . . . Route ------- -11/Scrapyard -10/Materials (discovered 4 exits: [*Mat x3] / [*Min]) -10/Mines History --------- Turn | Location | Event 1 | -11/Scrapyard | Discovered new exit (range 3) 4 | -11/Scrapyard | Entered Materials 263 | -10/Materials | Discovered new exit (range 8) 311 | -10/Materials | Build established: Mutant 358 | -10/Materials | Discovered new exit (range 8) 661 | -10/Materials | Discovered new exit (range 15) 877 | -10/Materials | Discovered new exit (range 13) 1304 | -10/Materials | Derelicts attacked the area 1340 | -10/Materials | Core integrity fell below 50% 2111 | -10/Materials | Entered Mines 2134 | -10/Mines | Assembled infested the area 2139 | -10/Mines | Assisted by a Guerilla fighting off Assembled 2455 | -10/Mines | Core integrity fell below 20% 2603 | -10/Mines | Received a Rocket Launcher from a helpful Derelict 2740 | -10/Mines | Destroyed by as-07915 with Assembled F-torch Last Messages --------------- 02550_ as-24287 destroyed. 02597_ A derelict emerges from the shadows. 02598_ 40-KXK(g): "Some of my friends down here think you need a mining laser when you travel the depths." 02599_ 40-KXK(g): "They are crazy." 02600_ 40-KXK(g): "Everyone knows a good old rocket launcher goes a long way." 02601_ 40-KXK(g): "Need to get rid of a swarm? Done. Need a big hole in the wall? Done." 02602_ 40-KXK(g): "Need a small hole in the wall? Leave that to the mining laser wimps, I say!" 02603_ 40-KXK(g): "Would you like a rocket launcher? I know I would if I were you, so I'm going to lend you mine." 02603_ 40-KXK(g) slips back into the shadows. 02617_ Acquired Rocket Launcher. 02684_ Searching scrap... 02684_ Found Lgt. Assault Rifle. 02684_ Found Assault Rifle. 02684_ Found Power Shielding. 02684_ Found 13 Matter. Map ----- +----------------------------------------------------+ | | | | | | | | | | | | | | | | | | | | | | | | | | | | | | | | | | | | | | | | | | | ?????????????????????????????????????????????????? | | ??????????????????????????????####???????????????? | | ?????????????????????????????## ##???####???????# | | ???????????????????????#######*= ##?## ######?## | | ???????????????????????# @=%!%!| ### #?# | | ???????????????????????# *###*== ### #?# | | ???????????????????????# #?#=% """ ##?# #?#! | | ???????????????????????# #?##% """ ##### ### | | ??????????????????????? a#??## %= "" #?# !%! | | ?????????????????????? #???## #?# #####! | | ????????????????????? #????## #?# ????## | | ???????????????????? #?????## ##??????? | | ???????????????????## = #??????## % ??????? | | ????????????????????## !!!????????# # #?????? | | ?????????????????????##=|#????????# ##?#?????? | | ??????????????????????##%?????????## ##????????? | | ???????????????????????#=??????????#####?????????? | | ????????????????????????%????????????????????????? | | ????????????????????????*??????????????#?????????? | | ????????????????????????=??????????????# ???##### | | ??????????????????????????????????????## ??# # | | ?????????????????????????????????????## ## # | | ?????????????????????????????????????#* |%! % | | ????????????????????????????????????# % % ! | | ????????????????????????????????????# ### # # | | ????????????????????????????????????## ???## | | ?????????????????????????????????????# ?????# ## | | ????????????????????????????????????# ???????## | | ???????????????????????????????????# ?????????## | +----------------------------------------------------+ Best States ------------- Heat Dissipation 25 Energy Generation 12 Energy Capacity 265 Matter Stores 300 Matter Capacity 300 Sight Range 16 Terrain Scan Density 10 Armor Coverage 150 Evasion (%) 55 Targeting Accuracy 5 Salvage Targeting 1 Item Schematics ----------------- None Robot Schematics ------------------ None Fabricated ------------ Nothing Alien Tech Used ----------------- None Achievements -------------- None Challenges ------------ None Game ------ Seed PoweredStealthCleaver Manual? 0 Play Time 00:21:12 Cumulative 34.3 hours Start 2024.04.17 @ 00:13:51 End 2024.04.21 @ 23:12:07 Sessions 4 Manual Loads 0 Difficulty Rogue Special Mode None Game No. 22 Rogue 21 Adventurer 1 Explorer 0 Win Type - Total 1 Types 1/0/0/0/0/0/0/0/0 Lore% 25 Gallery% 32 Achievement% 26 Wizard Run 0 Options --------- Layout 0 ASCII 1 Keyboard 1 Movement Numpad Keybinds 0 Fullscreen 2 Font 18/SmallcapsGlow Map View 76x50 Zoom Use 0% Tactical HUD 1 Map Filters NONE Filters NONE Steam 1 RUN: fb634fe9-2929-4e63-a08e-d4e3df2c5338